[Event "Late-Titled-Tuesday-Blitz-June-25-2024"]
[Site "Chess.com"]
[Date "2024.06.25"]
[Round "5"]
[White "MatthewG-p4p"]
[Black "Root_21"]
[Result "1-0"]
[WhiteElo "2921"]
[BlackElo "2668"]
[TimeControl "180+1"]
[EndTime "14:54:46 PDT"]
[Termination "MatthewG-p4p won by checkmate"]

1. f4 {[%clk 0:03:00.9]} 1... f5 {[%clk 0:02:52.9]} 2. Nf3 {[%clk 0:02:59.9]}
2... g6 {[%clk 0:02:53.1]} 3. g3 {[%clk 0:03:00.2]} 3... Bg7 {[%clk 0:02:53.4]}
4. Bg2 {[%clk 0:03:01.1]} 4... Nf6 {[%clk 0:02:54]} 5. O-O {[%clk 0:03:02]} 5...
O-O {[%clk 0:02:54.6]} 6. d3 {[%clk 0:03:02.9]} 6... d6 {[%clk 0:02:54.9]} 7.
Nc3 {[%clk 0:03:03.8]} 7... Nbd7 {[%clk 0:02:55]} 8. e4 {[%clk 0:03:03.7]} 8...
fxe4 {[%clk 0:02:54.7]} 9. dxe4 {[%clk 0:03:04]} 9... e5 {[%clk 0:02:55.3]} 10.
f5 {[%clk 0:03:03.9]} 10... Nc5 {[%clk 0:02:52.7]} 11. Nh4 {[%clk 0:03:01]}
11... Qe8 {[%clk 0:02:43.8]} 12. Bg5 {[%clk 0:02:52.5]} 12... gxf5 {[%clk
0:02:34.1]} 13. exf5 {[%clk 0:02:23.4]} 13... Ncd7 {[%clk 0:01:46.6]} 14. Nb5
{[%clk 0:02:11.8]} 14... Qd8 {[%clk 0:01:43.3]} 15. c4 {[%clk 0:02:01.5]} 15...
a6 {[%clk 0:01:41.3]} 16. Nc3 {[%clk 0:02:01.8]} 16... Qe8 {[%clk 0:01:38.3]}
17. Qd2 {[%clk 0:01:04.3]} 17... Ra7 {[%clk 0:01:30.8]} 18. Bh6 {[%clk
0:00:49.7]} 18... Qh5 {[%clk 0:01:30.6]} 19. Bxg7 {[%clk 0:00:46.3]} 19... Kxg7
{[%clk 0:01:31.5]} 20. Rae1 {[%clk 0:00:43.2]} 20... Qh6 {[%clk 0:01:30.2]} 21.
Qf2 {[%clk 0:00:38.4]} 21... b6 {[%clk 0:01:29.7]} 22. h3 {[%clk 0:00:38.2]}
22... Bb7 {[%clk 0:01:27.5]} 23. Bxb7 {[%clk 0:00:30.6]} 23... Rxb7 {[%clk
0:01:28.4]} 24. Qg2 {[%clk 0:00:31.4]} 24... Rbb8 {[%clk 0:01:20.5]} 25. Nf3
{[%clk 0:00:30.2]} 25... Nh5 {[%clk 0:01:14.5]} 26. Nd5 {[%clk 0:00:28.3]} 26...
Rbc8 {[%clk 0:01:11.1]} 27. Nd2 {[%clk 0:00:15.5]} 27... Kh8 {[%clk 0:01:02.8]}
28. g4 {[%clk 0:00:09.1]} 28... Ng7 {[%clk 0:01:02.5]} 29. g5 {[%clk 0:00:05.2]}
29... Qh5 {[%clk 0:01:02.8]} 30. f6 {[%clk 0:00:05.5]} 30... Ne6 {[%clk
0:01:03]} 31. Ne4 {[%clk 0:00:03.9]} 31... Ndc5 {[%clk 0:01:00.1]} 32. Ne7
{[%clk 0:00:03.9]} 32... Rce8 {[%clk 0:00:57.1]} 33. Nxc5 {[%clk 0:00:04]} 33...
bxc5 {[%clk 0:00:57.2]} 34. Rf5 {[%clk 0:00:04.3]} 34... Rxe7 {[%clk 0:00:55.9]}
35. fxe7 {[%clk 0:00:03.9]} 35... Rxf5 {[%clk 0:00:52.5]} 36. Qa8+ {[%clk
0:00:04.5]} 36... Kg7 {[%clk 0:00:42.8]} 37. e8=Q {[%clk 0:00:05.1]} 37... Qxg5+
{[%clk 0:00:36.5]} 38. Kh1 {[%clk 0:00:05.6]} 38... Qf6 {[%clk 0:00:30]} 39.
Rg1+ {[%clk 0:00:05.3]} 39... Kh6 {[%clk 0:00:29.6]} 40. Qe4 {[%clk 0:00:04.7]}
40... Rf3 {[%clk 0:00:23.7]} 41. Qg4 {[%clk 0:00:04.8]} 41... Rf5 {[%clk
0:00:17.8]} 42. Qeg8 {[%clk 0:00:04.6]} 42... Rf4 {[%clk 0:00:11.1]} 43. Q8xe6
{[%clk 0:00:03.5]} 43... Qxe6 {[%clk 0:00:11]} 44. Qxe6+ {[%clk 0:00:03.7]}
44... Kh5 {[%clk 0:00:11.9]} 45. Qe8+ {[%clk 0:00:03.8]} 45... Kh6 {[%clk
0:00:11.7]} 46. Qe7 {[%clk 0:00:03.7]} 46... Kh5 {[%clk 0:00:12.2]} 47. Qxh7#
{[%clk 0:00:03.9]} 1-0

[Event "Late-Titled-Tuesday-Blitz-June-25-2024"]
[Site "Chess.com"]
[Date "2024.06.25"]
[Round "5"]
[White "dosto07"]
[Black "ozates"]
[Result "0-1"]
[WhiteElo "2447"]
[BlackElo "2621"]
[TimeControl "180+1"]
[EndTime "14:54:46 PDT"]
[Termination "ozates won by resignation"]

1. e4 {[%clk 0:03:00.9]} 1... c5 {[%clk 0:02:53]} 2. Nf3 {[%clk 0:03:01]} 2...
Nc6 {[%clk 0:02:53]} 3. Bb5 {[%clk 0:03:00.8]} 3... g5 {[%clk 0:02:52.5]} 4.
Nxg5 {[%clk 0:02:49.9]} 4... Nf6 {[%clk 0:02:52.4]} 5. Bxc6 {[%clk 0:02:34.7]}
5... dxc6 {[%clk 0:02:53.3]} 6. e5 {[%clk 0:02:33]} 6... Qd5 {[%clk 0:02:52.7]}
7. exf6 {[%clk 0:01:50]} 7... Qxg2 {[%clk 0:02:49.2]} 8. Qf3 {[%clk 0:01:49.5]}
8... Qxg5 {[%clk 0:02:48.1]} 9. fxe7 {[%clk 0:01:47.7]} 9... Bxe7 {[%clk
0:02:48.9]} 10. Nc3 {[%clk 0:01:44.2]} 10... Bg4 {[%clk 0:02:48.6]} 11. Qg3
{[%clk 0:01:30.8]} 11... Qh5 {[%clk 0:02:36]} 12. Rg1 {[%clk 0:01:21.8]} 12...
Bf3 {[%clk 0:02:32.4]} 13. d3 {[%clk 0:01:15.3]} 13... O-O-O {[%clk 0:02:30.9]}
14. Bf4 {[%clk 0:00:59.9]} 14... Bh4 {[%clk 0:02:26.7]} 15. Qg7 {[%clk
0:00:53.5]} 15... Rhe8+ {[%clk 0:02:25.5]} 16. Kd2 {[%clk 0:00:41.5]} 16... Qf5
{[%clk 0:02:14.1]} 17. Bg5 {[%clk 0:00:17.9]} 17... Bxf2 {[%clk 0:02:04.7]} 18.
Rae1 {[%clk 0:00:08.5]} 18... Bxe1+ {[%clk 0:02:01.6]} 19. Rxe1 {[%clk
0:00:08.9]} 19... Rxe1 {[%clk 0:01:58.9]} 20. Kxe1 {[%clk 0:00:09.2]} 20... Re8+
{[%clk 0:01:57.9]} 21. Kd2 {[%clk 0:00:09]} 21... Bg4 {[%clk 0:01:45.8]} 22. Ne4
{[%clk 0:00:08.7]} 22... Rxe4 {[%clk 0:01:36.8]} 23. Qf8+ {[%clk 0:00:07.6]}
23... Kd7 {[%clk 0:01:24.2]} 24. Qd8+ {[%clk 0:00:07.6]} 24... Ke6 {[%clk
0:01:24.7]} 25. Qe7+ {[%clk 0:00:06.1]} 25... Kd5 {[%clk 0:01:24.8]} 26. dxe4+
{[%clk 0:00:06.2]} 26... Qxe4 {[%clk 0:01:22.1]} 27. c4+ {[%clk 0:00:04.7]}
27... Qxc4 {[%clk 0:01:16.3]} 28. Qxf7+ {[%clk 0:00:04.6]} 28... Be6 {[%clk
0:01:16.5]} 29. Qf3+ {[%clk 0:00:04.1]} 29... Qe4 {[%clk 0:01:16.3]} 30. Qxe4+
{[%clk 0:00:03.8]} 30... Kxe4 {[%clk 0:01:17.2]} 31. b3 {[%clk 0:00:03.5]} 31...
c4 {[%clk 0:01:17.8]} 32. bxc4 {[%clk 0:00:03.2]} 32... Bxc4 {[%clk 0:01:18.7]}
33. a3 {[%clk 0:00:03.7]} 33... Be6 {[%clk 0:01:00.3]} 34. Be3 {[%clk
0:00:04.6]} 34... b6 {[%clk 0:00:57.9]} 35. Bf2 {[%clk 0:00:03.8]} 35... c5
{[%clk 0:00:57.8]} 36. Bg3 {[%clk 0:00:04.7]} 36... Kd4 {[%clk 0:00:55.4]} 37.
Kc2 {[%clk 0:00:04.2]} 37... Kc4 {[%clk 0:00:54.8]} 38. Kb2 {[%clk 0:00:04.6]}
38... b5 {[%clk 0:00:51.1]} 39. Bb8 {[%clk 0:00:05.5]} 39... a5 {[%clk
0:00:51.2]} 40. Be5 {[%clk 0:00:04.8]} 40... b4 {[%clk 0:00:50.7]} 41. Bf6
{[%clk 0:00:05]} 41... Kd3 {[%clk 0:00:48.7]} 42. Be7 {[%clk 0:00:04.3]} 42...
Kc4 {[%clk 0:00:38.3]} 43. Bf6 {[%clk 0:00:03.4]} 43... Kb5 {[%clk 0:00:30.3]}
44. Bg7 {[%clk 0:00:03.1]} 44... Ka4 {[%clk 0:00:28.1]} 45. axb4 {[%clk
0:00:02.9]} 45... axb4 {[%clk 0:00:27.9]} 46. Bf8 {[%clk 0:00:03.8]} 46... c4
{[%clk 0:00:28]} 47. Be7 {[%clk 0:00:03.7]} 47... c3+ {[%clk 0:00:26.8]} 48. Kc1
{[%clk 0:00:02.8]} 48... b3 {[%clk 0:00:25.2]} 49. Bd6 {[%clk 0:00:02.6]} 49...
b2+ {[%clk 0:00:25]} 50. Kc2 {[%clk 0:00:02.2]} 50... Bf5+ {[%clk 0:00:24.2]}
51. Kxc3 {[%clk 0:00:02.9]} 51... b1=Q {[%clk 0:00:24.8]} 0-1

[Event "Late-Titled-Tuesday-Blitz-June-25-2024"]
[Site "Chess.com"]
[Date "2024.06.25"]
[Round "5"]
[White "betta2004"]
[Black "Mihajlovskij"]
[Result "1-0"]
[WhiteElo "2486"]
[BlackElo "2289"]
[TimeControl "180+1"]
[EndTime "14:54:49 PDT"]
[Termination "betta2004 won on time"]

1. Nf3 {[%clk 0:03:00.9]} 1... Nf6 {[%clk 0:02:57.2]} 2. b3 {[%clk 0:03:01.8]}
2... g6 {[%clk 0:02:53]} 3. Bb2 {[%clk 0:03:01.6]} 3... Bg7 {[%clk 0:02:53.9]}
4. e3 {[%clk 0:02:59.4]} 4... O-O {[%clk 0:02:54.4]} 5. d4 {[%clk 0:02:59.1]}
5... b6 {[%clk 0:02:54.7]} 6. Nbd2 {[%clk 0:02:59]} 6... Bb7 {[%clk 0:02:55.6]}
7. Bd3 {[%clk 0:02:59]} 7... d6 {[%clk 0:02:51.9]} 8. Qe2 {[%clk 0:02:59.2]}
8... Nbd7 {[%clk 0:02:52.8]} 9. h4 {[%clk 0:02:57.7]} 9... h5 {[%clk 0:02:52.5]}
10. O-O-O {[%clk 0:02:55.7]} 10... Re8 {[%clk 0:02:46]} 11. Ng5 {[%clk
0:02:54.1]} 11... a5 {[%clk 0:02:42.2]} 12. f3 {[%clk 0:02:53.5]} 12... a4
{[%clk 0:02:39.7]} 13. b4 {[%clk 0:02:51.2]} 13... c5 {[%clk 0:02:37.9]} 14. b5
{[%clk 0:02:50]} 14... e5 {[%clk 0:02:33.5]} 15. Qf2 {[%clk 0:02:42.6]} 15... a3
{[%clk 0:02:29.7]} 16. Ba1 {[%clk 0:02:42.2]} 16... Qc7 {[%clk 0:02:20]} 17.
Nde4 {[%clk 0:02:37.1]} 17... d5 {[%clk 0:02:13.1]} 18. Nxf6+ {[%clk 0:02:33.4]}
18... Bxf6 {[%clk 0:02:14]} 19. Qg3 {[%clk 0:02:27.2]} 19... Rac8 {[%clk
0:02:03.3]} 20. Rhe1 {[%clk 0:02:00.7]} 20... Bg7 {[%clk 0:01:13.5]} 21. Nxf7
{[%clk 0:01:56.1]} 21... Kxf7 {[%clk 0:01:13.5]} 22. Qxg6+ {[%clk 0:01:54]}
22... Kf8 {[%clk 0:01:12.7]} 23. Qf5+ {[%clk 0:01:42]} 23... Ke7 {[%clk
0:01:07.4]} 24. Qh7 {[%clk 0:01:29.8]} 24... Rg8 {[%clk 0:01:01.6]} 25. dxe5
{[%clk 0:01:23.1]} 25... Nxe5 {[%clk 0:00:58.6]} 26. Bf5 {[%clk 0:01:20.9]}
26... Rcf8 {[%clk 0:00:56.6]} 27. f4 {[%clk 0:01:19.2]} 27... Rxf5 {[%clk
0:00:33.2]} 28. Qxg8 {[%clk 0:01:01]} 28... Rf7 {[%clk 0:00:30.8]} 29. fxe5
{[%clk 0:00:52.3]} 29... Bxe5 {[%clk 0:00:29.7]} 30. Qg5+ {[%clk 0:00:50.7]}
30... Ke6 {[%clk 0:00:29.4]} 31. Qg6+ {[%clk 0:00:39.5]} 31... Ke7 {[%clk
0:00:24.9]} 32. Qg5+ {[%clk 0:00:33.4]} 32... Ke6 {[%clk 0:00:24.6]} 33. Qg6+
{[%clk 0:00:27.1]} 33... Ke7 {[%clk 0:00:24.3]} 34. Rf1 {[%clk 0:00:27.8]} 34...
Rg7 {[%clk 0:00:19.2]} 35. Qxg7+ {[%clk 0:00:08.4]} 35... Bxg7 {[%clk 0:00:19]}
36. Bxg7 {[%clk 0:00:09.3]} 36... Qg3 {[%clk 0:00:15.5]} 37. Bf8+ {[%clk
0:00:08.6]} 37... Ke8 {[%clk 0:00:14.3]} 38. Bh6 {[%clk 0:00:08.9]} 38... Qxh4
{[%clk 0:00:12.5]} 39. Rf8+ {[%clk 0:00:07.6]} 39... Ke7 {[%clk 0:00:12.7]} 40.
Rdf1 {[%clk 0:00:08.3]} 40... d4 {[%clk 0:00:02.8]} 41. R8f5 {[%clk 0:00:06.8]}
41... Be4 {[%clk 0:00:02]} 42. Bg5+ {[%clk 0:00:06.8]} 42... Ke6 {[%clk
0:00:01.1]} 43. Bxh4 {[%clk 0:00:06.2]} 43... Bxf5 {[%clk 0:00:02]} 44. exd4
{[%clk 0:00:05.8]} 1-0

[Event "Late-Titled-Tuesday-Blitz-June-25-2024"]
[Site "Chess.com"]
[Date "2024.06.25"]
[Round "5"]
[White "legendisback1"]
[Black "mishanick"]
[Result "1-0"]
[WhiteElo "3028"]
[BlackElo "3158"]
[TimeControl "180+1"]
[EndTime "14:54:50 PDT"]
[Termination "legendisback1 won by resignation"]

1. d4 {[%clk 0:03:00.9]} 1... Nf6 {[%clk 0:02:57.8]} 2. Bg5 {[%clk 0:02:58.3]}
2... d5 {[%clk 0:02:57]} 3. Nd2 {[%clk 0:02:57.4]} 3... c5 {[%clk 0:02:56.6]} 4.
dxc5 {[%clk 0:02:57.7]} 4... e6 {[%clk 0:02:55.8]} 5. e4 {[%clk 0:02:57.8]} 5...
Bxc5 {[%clk 0:02:56.2]} 6. e5 {[%clk 0:02:57.9]} 6... Qb6 {[%clk 0:02:56]} 7.
exf6 {[%clk 0:02:58]} 7... Bxf2+ {[%clk 0:02:56.1]} 8. Ke2 {[%clk 0:02:58.4]}
8... Bxg1 {[%clk 0:02:56.1]} 9. Rxg1 {[%clk 0:02:58.7]} 9... Qxg1 {[%clk
0:02:54.5]} 10. Ne4 {[%clk 0:02:59.2]} 10... g6 {[%clk 0:02:05.9]} 11. Nd6+
{[%clk 0:02:37.3]} 11... Kd7 {[%clk 0:02:05.6]} 12. Nxf7 {[%clk 0:02:37.5]}
12... Qxh2 {[%clk 0:02:04.8]} 13. Nxh8 {[%clk 0:01:21.5]} 13... Qh5+ {[%clk
0:02:03]} 14. Kf2 {[%clk 0:01:18.4]} 14... Qxg5 {[%clk 0:02:03.3]} 15. Qf3
{[%clk 0:01:16.8]} 15... Qf5 {[%clk 0:01:01.5]} 16. Bb5+ {[%clk 0:01:05.5]}
16... Nc6 {[%clk 0:00:57.6]} 17. Qxf5 {[%clk 0:01:00.8]} 17... gxf5 {[%clk
0:00:49.8]} 18. Rh1 {[%clk 0:00:46.2]} 18... Kd6 {[%clk 0:00:40.2]} 19. Bxc6
{[%clk 0:00:31.1]} 19... bxc6 {[%clk 0:00:35.1]} 20. Rxh7 {[%clk 0:00:31.5]}
20... e5 {[%clk 0:00:22.7]} 21. f7 {[%clk 0:00:24.2]} 21... Be6 {[%clk
0:00:20.3]} 22. Ng6 {[%clk 0:00:24.7]} 22... Bxf7 {[%clk 0:00:19.5]} 23. Rxf7
{[%clk 0:00:25.6]} 23... Ke6 {[%clk 0:00:15.2]} 24. Rc7 {[%clk 0:00:21.8]} 24...
Kd6 {[%clk 0:00:15]} 25. Rf7 {[%clk 0:00:15.8]} 25... Ke6 {[%clk 0:00:14.8]} 26.
Rb7 {[%clk 0:00:16.5]} 26... f4 {[%clk 0:00:14.7]} 27. b4 {[%clk 0:00:11.1]}
27... a5 {[%clk 0:00:12.9]} 28. b5 {[%clk 0:00:07.5]} 28... cxb5 {[%clk
0:00:12.9]} 29. Rb6+ {[%clk 0:00:07.9]} 29... Kf5 {[%clk 0:00:13]} 30. Ne7+
{[%clk 0:00:08.2]} 30... Ke4 {[%clk 0:00:13.6]} 31. Rxb5 {[%clk 0:00:09.1]}
31... Rd8 {[%clk 0:00:07.1]} 32. Rxa5 {[%clk 0:00:07.3]} 32... Rd7 {[%clk
0:00:07.1]} 33. Ra4+ {[%clk 0:00:05.4]} 33... d4 {[%clk 0:00:06.8]} 34. Nc6
{[%clk 0:00:05.5]} 34... Rc7 {[%clk 0:00:07]} 35. Rc4 {[%clk 0:00:05.9]} 35...
Kd5 {[%clk 0:00:05.5]} 36. Nxe5 {[%clk 0:00:05.4]} 36... Rxc4 {[%clk 0:00:04.7]}
37. Nxc4 {[%clk 0:00:06.3]} 37... Kxc4 {[%clk 0:00:05.6]} 38. Ke2 {[%clk
0:00:05.1]} 38... Kc3 {[%clk 0:00:01.5]} 39. Kd1 {[%clk 0:00:05.4]} 39... d3
{[%clk 0:00:01.8]} 40. cxd3 {[%clk 0:00:05.2]} 40... Kxd3 {[%clk 0:00:02.7]} 41.
a4 {[%clk 0:00:04.5]} 41... Ke3 {[%clk 0:00:03.4]} 42. a5 {[%clk 0:00:04.7]}
42... Kf2 {[%clk 0:00:03.8]} 43. a6 {[%clk 0:00:04.6]} 43... Kxg2 {[%clk
0:00:04.5]} 44. a7 {[%clk 0:00:05.5]} 44... f3 {[%clk 0:00:05.2]} 45. a8=Q
{[%clk 0:00:06.4]} 1-0

[Event "Late-Titled-Tuesday-Blitz-June-25-2024"]
[Site "Chess.com"]
[Date "2024.06.25"]
[Round "5"]
[White "protectiago"]
[Black "PawnEatingZombie"]
[Result "0-1"]
[WhiteElo "2125"]
[BlackElo "2305"]
[TimeControl "180+1"]
[EndTime "14:54:50 PDT"]
[Termination "PawnEatingZombie won on time"]

1. d4 {[%clk 0:02:59.9]} 1... Nf6 {[%clk 0:02:59.2]} 2. c4 {[%clk 0:03:00.1]}
2... g6 {[%clk 0:02:59.6]} 3. Nc3 {[%clk 0:02:59.7]} 3... Bg7 {[%clk 0:02:59.9]}
4. e4 {[%clk 0:02:59.7]} 4... d6 {[%clk 0:03:00.6]} 5. Nf3 {[%clk 0:02:59.7]}
5... O-O {[%clk 0:03:01]} 6. Be2 {[%clk 0:03:00.1]} 6... e5 {[%clk 0:03:01.3]}
7. Be3 {[%clk 0:03:00.2]} 7... exd4 {[%clk 0:02:59.5]} 8. Nxd4 {[%clk 0:03:00]}
8... Re8 {[%clk 0:02:56]} 9. Qc2 {[%clk 0:02:42.8]} 9... Nc6 {[%clk 0:02:39.5]}
10. Nxc6 {[%clk 0:02:41.7]} 10... bxc6 {[%clk 0:02:38.3]} 11. O-O {[%clk
0:02:31]} 11... c5 {[%clk 0:02:37.6]} 12. Rfe1 {[%clk 0:02:08.7]} 12... Bb7
{[%clk 0:02:20.5]} 13. Bf3 {[%clk 0:02:08.4]} 13... Nd7 {[%clk 0:02:16.3]} 14.
Rad1 {[%clk 0:01:55.7]} 14... Ne5 {[%clk 0:02:02.8]} 15. Be2 {[%clk 0:01:49.7]}
15... Qh4 {[%clk 0:01:58.1]} 16. g3 {[%clk 0:01:35.3]} 16... Qh3 {[%clk
0:01:55.1]} 17. f4 {[%clk 0:01:18.9]} 17... Ng4 {[%clk 0:01:43.8]} 18. Bxg4
{[%clk 0:01:18.7]} 18... Qxg4 {[%clk 0:01:43.1]} 19. Nd5 {[%clk 0:01:13.8]}
19... Bxd5 {[%clk 0:01:35.2]} 20. Rxd5 {[%clk 0:01:08.4]} 20... Rab8 {[%clk
0:01:27.1]} 21. b3 {[%clk 0:01:06.8]} 21... h5 {[%clk 0:01:27.5]} 22. Bf2 {[%clk
0:01:06.1]} 22... a5 {[%clk 0:01:15.2]} 23. e5 {[%clk 0:00:34.8]} 23... dxe5
{[%clk 0:00:50.1]} 24. fxe5 {[%clk 0:00:26.6]} 24... a4 {[%clk 0:00:47.8]} 25.
Bxc5 {[%clk 0:00:23.8]} 25... axb3 {[%clk 0:00:45.6]} 26. axb3 {[%clk
0:00:23.9]} 26... Qf3 {[%clk 0:00:38.5]} 27. Rd3 {[%clk 0:00:18.1]} 27... Qf5
{[%clk 0:00:33.7]} 28. Qe2 {[%clk 0:00:16.1]} 28... Rxe5 {[%clk 0:00:31.1]} 29.
Re3 {[%clk 0:00:14.3]} 29... Rxe3 {[%clk 0:00:12.9]} 30. Qxe3 {[%clk 0:00:13.6]}
30... h4 {[%clk 0:00:12.6]} 31. Rf1 {[%clk 0:00:13]} 31... Qc2 {[%clk
0:00:10.7]} 32. Qf3 {[%clk 0:00:12.6]} 32... f5 {[%clk 0:00:06.6]} 33. Qd5+
{[%clk 0:00:11.9]} 33... Kh7 {[%clk 0:00:07.2]} 34. b4 {[%clk 0:00:12.2]} 34...
Re8 {[%clk 0:00:03.7]} 35. Qg2 {[%clk 0:00:11.3]} 35... Re2 {[%clk 0:00:03.4]}
36. Qh3 {[%clk 0:00:10.2]} 36... Qd2 {[%clk 0:00:01.4]} 37. Qxh4+ {[%clk
0:00:09.9]} 37... Kg8 {[%clk 0:00:02]} 38. b5 {[%clk 0:00:02.5]} 38... Rg2+
{[%clk 0:00:02.1]} 39. Kh1 {[%clk 0:00:02.9]} 39... Rf2 {[%clk 0:00:02.6]} 40.
Rg1 {[%clk 0:00:02.6]} 40... Re2 {[%clk 0:00:01.9]} 41. Qe7 {[%clk 0:00:02.5]}
41... Rxe7 {[%clk 0:00:01]} 42. Bxe7 {[%clk 0:00:01.9]} 42... Qd3 {[%clk
0:00:01]} 43. Bg5 {[%clk 0:00:01.8]} 43... Qe2 {[%clk 0:00:01.9]} 0-1

[Event "Late-Titled-Tuesday-Blitz-June-25-2024"]
[Site "Chess.com"]
[Date "2024.06.25"]
[Round "5"]
[White "dennisodessa"]
[Black "artin10862"]
[Result "1/2-1/2"]
[WhiteElo "2670"]
[BlackElo "2899"]
[TimeControl "180+1"]
[EndTime "14:54:51 PDT"]
[Termination "Game drawn by repetition"]

1. d4 {[%clk 0:02:58.8]} 1... d5 {[%clk 0:02:26.4]} 2. c4 {[%clk 0:02:56]} 2...
e6 {[%clk 0:02:26.2]} 3. Nc3 {[%clk 0:02:56.1]} 3... c6 {[%clk 0:02:25.7]} 4.
Nf3 {[%clk 0:02:54]} 4... Nf6 {[%clk 0:02:24.9]} 5. e3 {[%clk 0:02:53.2]} 5...
a6 {[%clk 0:02:18.9]} 6. Bd2 {[%clk 0:02:48.1]} 6... Nbd7 {[%clk 0:02:09]} 7. b3
{[%clk 0:02:46.2]} 7... Bd6 {[%clk 0:01:57.7]} 8. Bd3 {[%clk 0:02:43.7]} 8... e5
{[%clk 0:01:55.8]} 9. dxe5 {[%clk 0:02:42.4]} 9... Nxe5 {[%clk 0:01:55.8]} 10.
Nxe5 {[%clk 0:02:43.3]} 10... Bxe5 {[%clk 0:01:56.7]} 11. h3 {[%clk 0:02:40.4]}
11... d4 {[%clk 0:01:25.3]} 12. exd4 {[%clk 0:02:39.2]} 12... Qxd4 {[%clk
0:01:26.2]} 13. Bc2 {[%clk 0:02:24.6]} 13... O-O {[%clk 0:01:20.9]} 14. O-O
{[%clk 0:02:24.9]} 14... Bxh3 {[%clk 0:01:01.7]} 15. gxh3 {[%clk 0:02:22.1]}
15... Rad8 {[%clk 0:01:01.4]} 16. Re1 {[%clk 0:01:32.9]} 16... Qxd2 {[%clk
0:00:57.4]} 17. Qxd2 {[%clk 0:01:32.9]} 17... Rxd2 {[%clk 0:00:57]} 18. Bxh7+
{[%clk 0:01:32]} 18... Kxh7 {[%clk 0:00:53.8]} 19. Rxe5 {[%clk 0:01:32.9]} 19...
Re8 {[%clk 0:00:42.7]} 20. Rae1 {[%clk 0:01:30.7]} 20... Rxe5 {[%clk 0:00:38.5]}
21. Rxe5 {[%clk 0:01:31.6]} 21... Rc2 {[%clk 0:00:38.8]} 22. Ne4 {[%clk
0:01:30.4]} 22... Nxe4 {[%clk 0:00:36.2]} 23. Rxe4 {[%clk 0:01:31.3]} 23... Rxa2
{[%clk 0:00:29]} 24. Re7 {[%clk 0:01:31.6]} 24... b5 {[%clk 0:00:28.6]} 25. Rxf7
{[%clk 0:01:31.7]} 25... b4 {[%clk 0:00:22.1]} 26. Rc7 {[%clk 0:01:28.6]} 26...
Ra3 {[%clk 0:00:13.8]} 27. Rxc6 {[%clk 0:01:28.4]} 27... Rxb3 {[%clk 0:00:14.2]}
28. Rxa6 {[%clk 0:01:28.5]} 28... Rxh3 {[%clk 0:00:14.4]} 29. Rb6 {[%clk
0:01:27.2]} 29... b3 {[%clk 0:00:14.2]} 30. c5 {[%clk 0:01:27]} 30... Rc3 {[%clk
0:00:14.4]} 31. c6 {[%clk 0:01:27.4]} 31... Kg6 {[%clk 0:00:10.6]} 32. c7+
{[%clk 0:01:27.3]} 32... Kf5 {[%clk 0:00:10.8]} 33. Rxb3 {[%clk 0:01:27]} 33...
Rxc7 {[%clk 0:00:10.9]} 34. Kg2 {[%clk 0:01:27.1]} 34... Kf4 {[%clk 0:00:11.3]}
35. Rb4+ {[%clk 0:01:26.9]} 35... Kf5 {[%clk 0:00:11.7]} 36. Rb3 {[%clk
0:01:27.8]} 36... g5 {[%clk 0:00:11.9]} 37. Rb5+ {[%clk 0:01:26]} 37... Kg4
{[%clk 0:00:11.6]} 38. Rb4+ {[%clk 0:01:25.8]} 38... Kh5 {[%clk 0:00:08.3]} 39.
Rb8 {[%clk 0:01:26.7]} 39... Rc4 {[%clk 0:00:08.3]} 40. Rh8+ {[%clk 0:01:23.3]}
40... Kg4 {[%clk 0:00:08.6]} 41. Rf8 {[%clk 0:01:23.2]} 41... Rf4 {[%clk
0:00:08.1]} 42. Rd8 {[%clk 0:01:21.8]} 42... Kf5 {[%clk 0:00:08]} 43. Rd5+
{[%clk 0:01:21.7]} 43... Kg4 {[%clk 0:00:07.9]} 44. Ra5 {[%clk 0:01:22.6]} 44...
Rc4 {[%clk 0:00:07.7]} 45. Rb5 {[%clk 0:01:21.8]} 45... Kf4 {[%clk 0:00:07.7]}
46. Ra5 {[%clk 0:01:21.5]} 46... Rd4 {[%clk 0:00:08.3]} 47. Ra8 {[%clk
0:01:21.3]} 47... Kg4 {[%clk 0:00:08.9]} 48. Rg8 {[%clk 0:01:21.1]} 48... Rf4
{[%clk 0:00:09.1]} 49. Rh8 {[%clk 0:01:21.5]} 49... Rf6 {[%clk 0:00:08.8]} 50.
Rg8 {[%clk 0:01:21.9]} 50... Kf4 {[%clk 0:00:08.9]} 51. Rb8 {[%clk 0:01:21.2]}
51... Re6 {[%clk 0:00:09.1]} 52. Rb4+ {[%clk 0:01:21.2]} 52... Kf5 {[%clk
0:00:09.6]} 53. Rb5+ {[%clk 0:01:22.1]} 53... Kg4 {[%clk 0:00:10]} 54. Rb4+
{[%clk 0:01:22]} 54... Kh5 {[%clk 0:00:10.3]} 55. Rb8 {[%clk 0:01:22.7]} 55...
Re4 {[%clk 0:00:09.1]} 56. Rh8+ {[%clk 0:01:22.2]} 56... Kg6 {[%clk 0:00:09.6]}
57. Rg8+ {[%clk 0:01:22.1]} 57... Kf5 {[%clk 0:00:09.8]} 58. Rf8+ {[%clk
0:01:21]} 58... Kg6 {[%clk 0:00:10.4]} 59. Rg8+ {[%clk 0:01:21.2]} 59... Kf6
{[%clk 0:00:11.1]} 60. Rf8+ {[%clk 0:01:21.3]} 60... Kg7 {[%clk 0:00:11.4]} 61.
Ra8 {[%clk 0:01:21.3]} 61... Rb4 {[%clk 0:00:10.1]} 62. Rc8 {[%clk 0:01:21.2]}
62... Kg6 {[%clk 0:00:09.9]} 63. Rg8+ {[%clk 0:01:21.3]} 63... Kh5 {[%clk
0:00:06.6]} 64. Rh8+ {[%clk 0:01:21.2]} 64... Kg4 {[%clk 0:00:07]} 65. Rc8
{[%clk 0:01:22.1]} 65... Rb2 {[%clk 0:00:05.8]} 66. Rc4+ {[%clk 0:01:21.1]}
66... Kf5 {[%clk 0:00:06.5]} 67. Rc5+ {[%clk 0:01:21.9]} 67... Kg6 {[%clk
0:00:07.1]} 68. Rc4 {[%clk 0:01:22.7]} 68... Kh5 {[%clk 0:00:07.4]} 69. Rc5
{[%clk 0:01:23]} 69... Kh4 {[%clk 0:00:07.9]} 70. Rc8 {[%clk 0:01:21.9]} 70...
g4 {[%clk 0:00:07.9]} 71. Rh8+ {[%clk 0:01:22.2]} 71... Kg5 {[%clk 0:00:08.3]}
72. Rg8+ {[%clk 0:01:22.6]} 72... Kf4 {[%clk 0:00:08.7]} 73. Rf8+ {[%clk
0:01:23.5]} 73... Kg5 {[%clk 0:00:09.1]} 74. Rg8+ {[%clk 0:01:24.4]} 74... Kh5
{[%clk 0:00:09.6]} 75. Rh8+ {[%clk 0:01:25]} 75... Kg5 {[%clk 0:00:10.1]} 76.
Rg8+ {[%clk 0:01:25.9]} 1/2-1/2